bitfinex/quotes_ETHUSD_20251213
["timestamp","ask_amount","ask_price","bid_price","bid_amount"]
[1765585700622,6.83,3089.7,3089.6,0.5102]
[1765585705027,6.32,3089.7,3089.6,0.5102]
[1765585707628,9.55656018,3089.7,3089.6,0.5102]
[1765585708129,9.55656018,3089.7,3089.6,0.2551]
[1765585711037,10.06656018,3089.7,3089.6,0.2551]
[1765585711463,16.52821443,3089.7,3089.3,0.002]
[1765585711742,0.4624,3089.4,3089.3,0.002]
[1765585712107,0.9434,3089.4,3089.3,0.002]
[1765585714051,4.18027447,3089.4,3089.3,0.002]
[1765585714214,4.92197855,3089.4,3089.3,0.002]
[1765585717440,5.43197855,3089.4,3089.3,0.002]
[1765585723632,4.48857855,3089.4,3089.3,0.2571]
[1765585724030,4.95097855,3089.4,3089.3,0.002]
[1765585724229,5.43197855,3089.4,3089.3,0.002]
[1765585725354,4.92197855,3089.4,3089.3,0.002]
[1765585725658,4.95097855,3089.4,3089.3,0.002]
[1765585727572,5.43197855,3089.4,3089.3,0.002]
[1765585728372,11.75197855,3089.4,3089.3,0.002]
[1765585733285,11.27097855,3089.4,3089.3,0.002]
[1765585733867,10.80857855,3089.4,3089.3,0.2571]
[1765585739388,10.29857855,3089.4,3089.3,0.2571]
[1765585739791,10.06687447,3089.4,3089.3,0.2571]
[1765585740093,10.06687447,3089.4,3089.3,0.5122]
[1765585740493,9.55687447,3089.4,3089.3,0.5122]
[1765585740689,10.06687447,3089.4,3089.3,0.5122]
[1765585740891,10.06687447,3089.4,3089.3,0.2571]
[1765585741275,11.3972389,3089.4,3089.3,0.2571]
[1765585742297,10.06687447,3089.4,3089.3,0.2571]
[1765585742594,3.74687447,3089.4,3089.3,0.5122]
[1765585748005,6.32,3089.8,3089.3,0.5122]
[1765585748195,6.98312036,3089.7,3089.4,0.5102]
[1765585748502,8.3616824,3089.7,3089.4,0.2551]
[1765585748709,8.8441824,3089.7,3089.4,0.2551]
[1765585749497,8.3341824,3089.7,3089.4,0.2551]
[1765585749710,0.51,3089.6,3089.4,0.2551]
[1765585750419,3.2367697,3089.5,3089.4,0.2551]
[1765585753607,6.4733301,3089.6,3089.4,0.2551]
[1765585753783,1.39444968,3089.5,3089.4,0.2551]
[1765585756294,4.63121938,3089.5,3089.4,0.2551]
[1765585758716,8.32378908,3089.5,3089.3,0.002]
[1765585759032,0.9383,3089.4,3089.3,0.002]
[1765585759212,2.14259541,3089.4,3089.3,0.002]
[1765585761524,4.89696988,3089.4,3089.3,0.002]
[1765585763490,5.40696988,3089.4,3089.3,0.002]
[1765585766510,4.89696988,3089.4,3089.3,0.002]
[1765585766693,5.40696988,3089.4,3089.3,0.002]
[1765585769429,4.89696988,3089.4,3089.3,0.002]
[1765585769607,5.40696988,3089.4,3089.3,0.002]
[1765585770629,5.87636988,3089.4,3089.3,0.002]
[1765585775631,12.19636988,3089.4,3089.3,0.002]
[1765585776634,12.32602847,3089.4,3089.3,0.002]
[1765585778137,16.36465105,3089.4,3089.3,0.002]
[1765585779433,16.94512634,3089.4,3089.3,0.002]
[1765585780739,12.39650376,3089.4,3089.3,0.002]
[1765585780940,11.21696988,3089.4,3089.3,0.002]
[1765585781139,11.27116988,3089.4,3089.3,0.2571]
[1765585783337,10.76116988,3089.4,3089.3,0.2571]
[1765585783528,11.27116988,3089.4,3089.3,0.2571]
[1765585800330,10.06687447,3089.4,3089.3,0.5122]
[1765585801452,10.06687447,3089.4,3089.3,0.2571]
[1765585801653,10.52017447,3089.4,3089.3,0.002]
[1765585801857,12.37676889,3089.4,3089.3,0.002]
[1765585816148,11.89586889,3089.4,3089.3,0.002]
[1765585820167,11.44256889,3089.4,3089.3,0.002]
[1765585820672,11.44256889,3089.4,3089.3,0.2571]
[1765585829081,10.06687447,3089.4,3089.3,0.2571]
[1765585833484,10.06687447,3089.4,3089.3,0.002]
[1765585834398,10.55367447,3089.4,3089.3,0.002]
[1765585834563,11.00467447,3089.4,3089.3,0.002]
[1765585835254,11.67959692,3089.4,3089.3,0.002]
[1765585835455,13.83003328,3089.4,3089.3,0.002]
[1765585847165,0.58047529,3088.6,3088.4,1.625]
[1765585847363,0.51,3088.5,3088.4,1.625]
[1765585847867,1.48260969,3088.5,3088.4,1.8801]
[1765585848581,4.7204274,3088.5,3088.4,1.8801]
[1765585855071,4.2104274,3088.5,3088.4,1.8801]
[1765585855272,4.7204274,3088.5,3088.4,1.8801]
[1765585857807,5.62883368,3088.5,3088.4,1.8801]
[1765585858106,5.62883368,3088.5,3088.4,1.625]
[1765585859105,5.11883368,3088.5,3088.4,1.625]
[1765585859296,5.62883368,3088.5,3088.4,1.625]
[1765585860076,5.62883368,3088.5,3088.4,1.8801]
[1765585860613,5.62883368,3088.5,3088.4,1.625]
[1765585862015,7.15670897,3088.5,3088.4,1.625]
[1765585862216,4.04246843,3088.3,3088.2,0.002]
[1765585862387,4.60261559,3088.3,3088.2,0.002]
[1765585862588,9.00131559,3088.3,3088.2,0.002]
[1765585862785,1.58811493,3088.3,3088.2,0.002]
[1765585863119,2.16859022,3088.3,3088.2,0.002]
[1765585863413,3.9504405,3088.3,3088.2,0.002]
[1765585863991,7.18846789,3088.3,3088.2,0.002]
[1765585865805,5.73006789,3088.3,3088.2,0.2571]
[1765585866017,12.56106789,3088.3,3088.2,0.2571]
[1765585866722,11.9805926,3088.3,3088.2,0.2571]
[1765585867297,11.9482139,3088.3,3088.2,0.2571]
[1765585868015,11.9482139,3088.3,3088.2,0.002]
[1765585869525,11.4372139,3088.3,3088.2,0.5122]
[1765585869825,11.9482139,3088.3,3088.2,0.5122]
[1765585870122,11.9482139,3088.3,3088.2,0.2571]
[1765585871422,11.9482139,3088.3,3088.2,0.5122]
[1765585871684,10.16636362,3088.3,3088.2,0.5122]
[1765585871945,9.65536362,3088.3,3088.2,0.5122]
[1765585872125,10.16636362,3088.3,3088.2,0.5122]
[1765585872539,10.06902739,3088.3,3088.2,0.5122]
[1765585872759,9.55802739,3088.3,3088.2,0.5122]
[1765585872960,10.06902739,3088.3,3088.2,0.5122]
[1765585876747,10.06902739,3088.3,3088.2,0.2571]
[1765585877046,10.06902739,3088.3,3088.2,0.5122]
[1765585882144,9.55802739,3088.3,3088.2,0.5122]
[1765585882340,10.06902739,3088.3,3088.2,0.5122]
[1765585887428,6.831,3088.3,3088.2,0.5122]
[1765585887750,10.06902739,3088.3,3088.2,0.5122]
[1765585889523,10.06902739,3088.3,3088.2,0.2571]
[1765585892531,10.06902739,3088.3,3088.2,0.5122]
[1765585894069,10.06902739,3088.3,3088.2,0.2571]
[1765585895172,9.55802739,3088.3,3088.2,0.2571]
[1765585895358,10.06902739,3088.3,3088.2,0.2571]
[1765585897668,11.86882241,3088.3,3088.2,0.002]
[1765585897845,12.34482241,3088.3,3088.2,0.002]
[1765585899070,12.47452388,3088.3,3088.2,0.002]
[1765585900379,11.39972241,3088.3,3088.2,0.2571]
[1765585900787,11.39972241,3088.3,3088.2,0.002]
[1765585900992,12.34482241,3088.3,3088.2,0.002]
[1765585910454,11.86882241,3088.3,3088.2,0.002]
[1765585911982,11.35782241,3088.3,3088.2,0.002]
[1765585912183,9.55802739,3088.3,3088.2,0.5122]
[1765585912387,10.06902739,3088.3,3088.2,0.5122]
[1765585912584,6.32,3088.3,3088.2,0.5122]
[1765585912882,0.511,3088.3,3088.2,0.5122]
[1765585914380,3.74902739,3088.3,3088.2,0.5122]
[1765585916865,0.511,3088.3,3088.2,0.5122]
[1765585920595,6.47500646,3088.8,3088.2,0.5122]
[1765585920904,0.511,3088.7,3088.2,0.002]
[1765585921194,0.511,3088.7,3088.3,0.2551]
[1765585921395,0.511,3088.7,3088.6,0.2551]
[1765585921609,1.04228692,3088.7,3088.6,0.2551]
[1765585921780,0.53128692,3088.7,3088.6,0.2551]
[1765585922104,1.04228692,3088.7,3088.6,0.2551]
[1765585922664,10.71121107,3088.7,3088.2,0.2571]
[1765585922882,2.04542111,3088.6,3088.2,0.002]
[1765585923300,0.4633,3088.5,3088.2,0.002]
[1765585924486,6.32,3088.4,3088.2,0.002]
[1765585924868,3.23802739,3088.3,3088.2,0.002]
[1765585925378,3.23802739,3088.3,3088.2,0.2571]
[1765585933592,3.23802739,3088.3,3088.2,0.5122]
[1765585934203,6.32,3088.4,3088.2,0.5122]
[1765585934373,6.32,3088.4,3088.3,4.54924526]
[1765585935199,6.32,3088.4,3088.3,5.52169416]
[1765585939382,9.55792254,3088.4,3088.3,1.2275489]
[1765585939587,9.55792254,3088.4,3088.3,0.2551]
[1765585942426,9.55792254,3088.4,3088.2,0.97452456]
[1765585942726,0.4517,3088.3,3088.2,0.002]
[1765585943035,0.9158,3088.3,3088.2,0.002]
[1765585944916,0.9158,3088.3,3088.2,0.2571]
[1765585944917,3.23802739,3088.3,3088.2,0.2571]
[1765585948127,10.47382739,3088.3,3088.2,0.002]
[1765585949824,10.47130108,3088.3,3088.2,0.002]
[1765585950119,12.35472217,3088.3,3088.2,0.002]
[1765585954427,12.48442238,3088.3,3088.2,0.002]
[1765585959237,13.06489767,3088.3,3088.2,0.002]
[1765585962845,16.47589767,3088.3,3088.2,0.002]
[1765585963130,6.318,3088.1,3088.0,0.002]
[1765585963333,7.2807,3088.1,3088.0,0.002]
[1765585963535,7.7448,3088.1,3088.0,0.002]
[1765585963843,7.8745183,3088.1,3088.0,0.002]
[1765585965143,11.1127554,3088.1,3088.0,0.002]
[1765585965443,13.34259808,3088.1,3088.0,0.002]
[1765585974740,13.34259808,3088.1,3087.9,0.002]
[1765585974741,4.39697929,3088.0,3087.9,0.002]
[1765585974940,5.38737929,3088.0,3087.9,0.002]
[1765585975455,8.62572125,3088.0,3087.9,0.002]
[1765585975652,10.45353064,3088.0,3087.9,0.002]
[1765585975841,34.29848219,3088.0,3087.9,0.002]
[1765585976349,34.39292935,3088.0,3087.9,0.002]
[1765585976787,40.05626735,3088.0,3087.9,0.002]
[1765585977758,40.67771335,3088.0,3087.9,0.002]
[1765585983359,33.13957735,3088.0,3087.9,0.002]
[1765585983532,20.31068135,3088.0,3087.9,0.002]
[1765585983726,10.67771335,3088.0,3087.9,0.002]
[1765585983927,6.28073406,3088.0,3087.9,0.002]
[1765585984161,3.86197751,3088.0,3087.9,0.002]
[1765585984375,3.74934196,3088.0,3087.9,0.2571]
[1765585984548,3.23834196,3088.0,3087.9,0.2571]
[1765585984753,3.74934196,3088.0,3087.9,0.5122]
[1765585986077,0.511,3088.0,3087.9,0.5122]
[1765585987766,3.74934196,3088.0,3087.9,0.5122]
[1765585989676,10.06534196,3088.0,3087.9,0.2571]
[1765585990373,10.55924196,3088.0,3087.9,0.002]
[1765585990963,10.06534196,3088.0,3087.9,0.002]
[1765585992783,10.06534196,3088.0,3087.9,0.2571]
[1765585992981,10.06534196,3088.0,3087.9,0.5122]
[1765585994748,10.06534196,3088.0,3087.9,0.2571]
[1765585995376,10.55924196,3088.0,3087.9,0.002]
[1765585995772,11.96707599,3088.0,3087.9,0.002]
[1765585996781,12.46357599,3088.0,3087.9,0.002]
[1765585996978,11.96707599,3088.0,3087.9,0.002]
[1765585997790,12.46357599,3088.0,3087.9,0.002]
[1765585997949,15.87457599,3088.0,3087.9,0.002]
[1765585998155,12.46357599,3088.0,3087.9,0.002]
[1765585998865,13.04405128,3088.0,3087.9,0.002]
[1765585999057,13.17376958,3088.0,3087.9,0.002]
[1765586000953,12.67726958,3088.0,3087.9,0.002]
[1765586004788,12.18336958,3088.0,3087.9,0.002]
[1765586011593,12.18336958,3088.0,3087.9,0.2571]
[1765586012766,12.05365128,3088.0,3087.9,0.2571]
[1765586014897,9.55434196,3088.0,3087.9,0.2571]
[1765586015099,9.55434196,3088.0,3087.9,0.5122]
[1765586015269,10.06534196,3088.0,3087.9,0.5122]
[1765586016973,10.06534196,3088.0,3087.9,0.2571]
[1765586024903,10.52974196,3088.0,3087.9,0.002]
[1765586025087,12.41168459,3088.0,3087.9,0.002]
[1765586025275,11.90068459,3088.0,3087.9,0.002]
[1765586025476,12.41168459,3088.0,3087.9,0.002]
[1765586027407,11.91598459,3088.0,3087.9,0.002]
[1765586027615,11.45158459,3088.0,3087.9,0.2571]
[1765586027911,11.90068459,3088.0,3087.9,0.002]
[1765586028100,11.91598459,3088.0,3087.9,0.002]
[1765586029006,12.41168459,3088.0,3087.9,0.002]
[1765586029185,12.50613175,3088.0,3087.9,0.002]
[1765586029985,12.01043175,3088.0,3087.9,0.002]
[1765586032015,11.54603175,3088.0,3087.9,0.2571]
[1765586032913,11.54603175,3088.0,3087.9,0.002]
[1765586033212,12.03423175,3088.0,3087.9,0.002]
[1765586036417,11.52323175,3088.0,3087.9,0.002]
[1765586036616,12.03423175,3088.0,3087.9,0.002]
[1765586039423,11.52323175,3088.0,3087.9,0.002]
[1765586039612,12.03423175,3088.0,3087.9,0.002]
[1765586041528,12.51293175,3088.0,3087.9,0.002]
[1765586042027,12.03423175,3088.0,3087.9,0.002]
[1765586042521,11.52323175,3088.0,3087.9,0.002]
[1765586042725,12.03423175,3088.0,3087.9,0.002]
[1765586043824,13.09340704,3088.0,3087.9,0.002]
[1765586044028,42.64230304,3088.0,3087.9,0.002]
[1765586044209,42.7720449,3088.0,3087.9,0.002]
[1765586044527,29.6401249,3088.0,3087.9,0.002]
[1765586044699,25.8194749,3088.0,3087.9,0.002]
[1765586044899,27.2210129,3088.0,3087.9,0.002]
[1765586045099,26.4498019,3088.0,3087.9,0.002]
[1765586045327,24.9386209,3088.0,3087.9,0.002]
[1765586046130,21.88338688,3088.0,3087.9,0.002]
[1765586046325,20.82238688,3088.0,3087.9,0.002]
[1765586046905,16.40995988,3088.0,3087.9,0.002]
[1765586047111,20.51438688,3088.0,3087.9,0.002]
[1765586048129,16.50440704,3088.0,3087.9,0.002]
[1765586048433,29.39508004,3088.0,3087.9,0.002]
[1765586048631,29.80058404,3088.0,3087.9,0.002]
[1765586049128,6.312,3087.7,3087.6,0.002]
[1765586049304,7.49473,3087.7,3087.6,0.002]
[1765586049504,7.97343,3087.7,3087.6,0.002]
[1765586051626,11.2120866,3087.7,3087.6,0.002]
[1765586053431,11.7230866,3087.7,3087.6,0.002]
[1765586057844,6.31,3087.5,3087.4,0.002]
[1765586058010,9.34642762,3087.5,3087.4,0.002]
[1765586058210,9.82512762,3087.5,3087.4,0.002]
[1765586058841,10.40560291,3087.5,3087.4,0.002]
[1765586059055,13.6444693,3087.5,3087.4,0.002]
[1765586060839,13.1657693,3087.5,3087.4,0.002]
[1765586061039,12.6775693,3087.5,3087.4,0.2571]
[1765586062814,9.54886639,3087.5,3087.4,0.5122]
[1765586063135,10.05986639,3087.5,3087.4,0.5122]
[1765586067212,6.31,3087.5,3087.4,0.5122]
[1765586068546,9.54886639,3087.5,3087.4,0.5122]
[1765586074636,10.05986639,3087.5,3087.4,0.5122]
[1765586078661,10.05986639,3087.5,3087.4,0.2571]
[1765586078865,10.05986639,3087.5,3087.4,0.5122]
[1765586082983,10.05986639,3087.5,3087.4,0.2571]
[1765586083147,10.05986639,3087.5,3087.4,0.5122]
[1765586084827,10.05986639,3087.5,3087.4,0.002]
[1765586085333,10.05986639,3087.5,3087.4,0.2571]
[1765586097451,10.05986639,3087.5,3087.4,0.5122]
[1765586097651,6.31,3087.5,3087.4,0.5122]
[1765586097856,6.31,3087.5,3087.4,1.0244]
[1765586105191,6.31,3087.5,3087.4,4.2633713]
[1765586107782,6.31,3087.5,3087.4,4.84384659]
[1765586107974,0.1966,3088.7,3087.4,4.84384659]
[1765586107975,0.511,3088.2,3087.5,0.98597929]
[1765586108312,0.511,3088.3,3087.7,4.04094553]
[1765586108504,0.511,3088.3,3088.2,0.2551]
[1765586108705,0.511,3088.3,3088.2,0.3809]
[1765586108910,0.511,3088.3,3088.2,0.636]
[1765586109669,0.511,3088.5,3088.2,0.636]
[1765586109897,0.511,3088.5,3088.4,0.2551]
[1765586112481,3.74881771,3088.5,3088.4,0.2551]
[1765586114983,0.511,3088.5,3088.4,0.2551]
[1765586118914,3.74881771,3088.5,3088.4,0.2551]
[1765586119092,7.46343542,3088.5,3088.2,0.3809]
[1765586119288,7.95463542,3088.5,3088.2,0.3809]
[1765586119608,4.71681771,3088.5,3088.2,0.2551]
[1765586120298,11.02681771,3088.5,3088.2,0.2551]
[1765586121311,10.53561771,3088.5,3088.2,0.2551]
[1765586122008,10.53561771,3088.5,3088.2,0.5102]
[1765586122587,0.001,3088.9,3088.4,0.2551]
[1765586122787,0.001,3088.9,3088.8,0.2551]
[1765586122991,3.74939842,3088.9,3088.8,0.2551]
[1765586123592,3.74939842,3088.9,3088.6,0.97238586]
[1765586126320,3.74939842,3088.9,3088.5,0.2551]
[1765586126618,3.74939842,3088.9,3088.5,1.22748586]
[1765586128115,3.74939842,3088.9,3088.5,0.97238586]
[1765586128311,3.74939842,3088.9,3088.6,0.2551]
[1765586129224,3.74939842,3088.9,3088.5,0.97238586]
[1765586129521,0.51,3088.8,3088.5,1.22748586]
[1765586130819,0.51,3088.8,3088.7,0.2551]
[1765586132522,3.2384644,3088.9,3088.7,0.2551]
[1765586132690,0.51,3088.8,3088.7,0.2551]
[1765586133093,0.9633,3088.8,3088.5,0.97238586]
[1765586133923,4.20083528,3088.8,3088.3,0.2551]
[1765586134093,0.4533,3088.4,3088.2,0.97242998]
[1765586134290,0.4533,3088.3,3088.2,0.97242998]
[1765586134617,0.9178,3088.3,3088.0,0.97249933]
[1765586134989,0.4533,3088.1,3087.7,0.58047529]
[1765586135419,0.4533,3088.1,3087.7,0.83557529]
[1765586135596,0.4533,3088.1,3087.7,1.34557529]
[1765586136627,0.4533,3088.1,3087.8,0.58047529]
[1765586138025,0.4645,3088.2,3087.8,0.58047529]
[1765586138323,0.4645,3088.2,3087.8,0.83557529]
[1765586138824,3.2380704,3088.3,3087.8,0.83557529]
[1765586139028,0.51,3088.2,3087.9,0.2551]
[1765586139407,0.51,3088.2,3088.1,0.2551]
[1765586139724,3.2379627,3088.4,3088.1,0.2551]
[1765586139922,0.51,3088.3,3087.8,3.2385307]
[1765586140126,0.51,3088.3,3087.9,0.2551]
[1765586140716,0.51,3088.3,3087.9,3.49352958]
[1765586141119,0.51,3088.3,3087.9,0.2551]
[1765586141520,3.74803258,3088.3,3087.9,0.2551]
[1765586141827,0.51,3088.3,3087.9,0.2551]
[1765586144630,6.31,3088.6,3088.2,3.49313038]
[1765586144798,6.31,3088.6,3088.5,0.2551]
[1765586145202,6.31,3088.6,3088.5,0.5102]
[1765586145743,0.001,3088.9,3088.5,1.09067529]
[1765586145902,0.001,3088.9,3088.8,0.2551]
[1765586146303,0.001,3088.9,3088.8,0.5102]
[1765586152338,0.001,3088.9,3088.8,0.2551]
[1765586157657,0.001,3088.9,3088.8,0.5102]
[1765586160249,0.001,3088.9,3088.8,0.2551]
[1765586174457,0.001,3088.9,3088.7,0.9722409]
[1765586176239,0.001,3088.9,3088.8,0.2551]
[1765586179502,0.001,3088.9,3088.7,0.9722409]
[1765586179503,1.1579,3088.9,3088.7,0.9722409]
[1765586179774,0.4659,3088.8,3088.7,0.9722409]
[1765586179943,0.9623,3088.8,3088.7,0.9722409]
[1765586180871,0.9623,3088.8,3088.6,0.97229762]
[1765586181172,0.4585,3088.7,3088.6,0.97229762]
[1765586181369,0.9375,3088.7,3088.6,0.97229762]
[1765586183758,7.41278039,3088.7,3088.0,0.58047529]
[1765586183964,0.4585,3088.6,3088.3,0.97240162]
[1765586184288,0.479,3088.4,3087.9,0.58047529]
[1765586184500,0.479,3088.4,3087.9,1.55293995]
[1765586184860,0.4585,3088.3,3087.9,0.58047529]
[1765586185059,0.4585,3088.3,3088.0,0.97246466]
[1765586186480,0.4585,3088.3,3088.0,1.55293995]
[1765586186881,3.74785831,3088.5,3088.1,0.58047529]
[1765586186882,3.74782351,3088.5,3088.1,0.58047529]
[1765586187086,4.20632351,3088.5,3088.1,0.97246466]
[1765586187288,0.4585,3088.4,3088.1,0.97246466]
[1765586188687,0.479,3088.2,3088.1,0.97246466]
[1765586189187,0.479,3088.2,3087.8,0.83557529]
[1765586189352,0.9375,3088.2,3087.9,0.97252771]
[1765586189985,0.479,3088.0,3087.9,0.97252771]
[1765586190368,0.4585,3088.1,3087.9,1.22762771]
[1765586190775,0.4585,3088.3,3087.9,1.22762771]
[1765586190981,0.4585,3088.2,3087.9,1.22762771]
[1765586193609,3.23797199,3088.4,3087.9,1.22762771]
[1765586193787,0.4585,3088.4,3088.0,0.58047529]
[1765586194470,10.00644376,3088.4,3087.9,0.2551]
[1765586194886,6.7685,3088.4,3088.0,0.58047529]
[1765586195620,6.31,3088.4,3088.0,0.58047529]
[1765586195910,0.4585,3088.3,3088.0,0.58047529]
[1765586202230,0.4585,3088.3,3087.9,0.2551]
[1765586202433,0.4585,3088.3,3087.8,3.81898081]
[1765586202601,0.4585,3088.3,3088.0,0.58047529]
[1765586210507,6.31,3088.4,3088.2,0.2551]
[1765586211114,6.7748,3088.4,3088.2,0.2551]
[1765586211336,6.7748,3088.4,3088.0,0.2551]
[1765586211540,6.7748,3088.4,3088.0,0.83557529]
[1765586211755,6.31,3088.4,3088.0,0.83557529]
[1765586212655,6.7748,3088.4,3088.0,0.83557529]
[1765586214349,6.7748,3088.4,3088.0,0.58047529]
[1765586215557,6.31,3088.4,3088.3,0.2551]
[1765586215860,0.7056,3088.9,3088.3,0.5102]
[1765586216061,4.40780942,3088.9,3088.3,0.5102]
[1765586216243,0.7056,3088.9,3088.3,0.5102]
[1765586216426,0.4648,3088.8,3088.3,0.5102]
[1765586216956,0.4648,3088.8,3088.4,0.2551]
[1765586217332,0.511,3088.9,3088.7,0.2551]
[1765586217721,0.511,3088.9,3088.8,0.2551]
[1765586219440,0.511,3088.9,3088.5,3.23778435]
[1765586219441,0.9641,3088.9,3088.5,3.23778435]
[1765586219936,0.9641,3088.9,3088.4,1.22739762]
[1765586219937,0.4531,3088.6,3088.4,0.97229762]
[1765586220141,0.4531,3088.5,3088.4,0.97229762]
[1765586220342,0.4648,3088.7,3088.4,0.97229762]
[1765586220542,0.4648,3088.7,3088.5,0.58047529]
[1765586221245,0.4531,3088.6,3088.4,1.55277291]
[1765586221557,0.4648,3088.7,3088.4,4.7906918]
[1765586221854,0.4648,3088.7,3088.5,0.2551]
[1765586225156,0.4648,3088.7,3088.5,0.83557529]
[1765586226052,0.4531,3088.6,3088.4,0.97229762]
[1765586226256,0.4531,3088.6,3088.4,1.55277291]
[1765586226422,0.9179,3088.5,3087.6,0.51]
[1765586226626,0.4531,3088.1,3088.0,0.511]
[1765586226858,0.4648,3088.4,3088.0,1.09147529]
[1765586227153,0.4648,3088.4,3088.0,4.32981626]
[1765586227547,0.4648,3088.4,3088.0,0.511]
[1765586228458,0.4648,3088.4,3088.0,3.74930025]
[1765586230327,0.4648,3088.4,3088.0,0.511]
[1765586234257,3.70274068,3088.4,3088.0,0.511]
[1765586234462,0.4531,3088.1,3088.0,0.511]
[1765586235935,0.4531,3088.1,3087.8,3.23855104]
[1765586236256,0.4531,3088.1,3087.9,0.58047529]
[1765586236961,0.9179,3088.1,3087.9,0.58047529]
[1765586238163,0.4531,3088.0,3087.9,0.58047529]
[1765586238364,0.9179,3088.0,3087.8,1.09147529]
[1765586240340,0.4671,3088.3,3087.9,0.2551]
[1765586240777,0.4671,3088.3,3087.9,0.5102]
[1765586242839,0.51,3088.5,3088.2,0.2551]
[1765586243040,0.93231423,3088.5,3088.2,0.2551]
[1765586243351,0.51,3088.4,3088.2,0.2551]
[1765586246357,0.9439,3088.3,3088.0,3.23832115]
[1765586247039,0.4685,3088.3,3088.0,3.23832115]
[1765586252447,0.4754,3088.5,3088.2,3.49319271]
[1765586253373,0.4685,3088.3,3088.2,0.2551]
[1765586253574,0.4685,3088.3,3088.1,1.55286745]
[1765586253973,0.9439,3088.3,3088.1,1.55286745]
[1765586254349,0.4685,3088.2,3088.1,0.58047529]
[1765586254548,0.9439,3088.2,3088.1,0.58047529]
[1765586255080,0.9439,3088.2,3087.9,3.81887398]
[1765586255249,0.9439,3088.2,3088.1,0.97242368]
[1765586257846,0.9439,3088.2,3088.1,1.55289897]
[1765586258273,0.4685,3088.2,3088.1,1.55289897]
[1765586260291,0.9439,3088.2,3088.1,0.97242368]
[1765586262603,0.4685,3088.2,3088.1,4.79113607]
[1765586262790,0.4754,3088.5,3088.1,5.04623607]
[1765586263193,0.4754,3088.5,3088.1,4.07381239]
[1765586263393,0.4754,3088.5,3088.2,0.97247727]
[1765586264021,0.51,3088.6,3088.2,0.97247727]
[1765586264479,0.4754,3088.5,3088.2,0.97247727]
[1765586265306,0.4754,3088.5,3088.2,4.21057891]
[1765586265504,0.51,3088.6,3088.4,0.2551]
[1765586266001,0.51,3088.6,3088.4,1.22752998]
[1765586270706,10.02293177,3088.8,3088.4,1.22752998]
[1765586271002,0.51,3088.6,3088.4,1.22752998]
[1765586271389,0.4662,3088.5,3088.4,0.97242998]
[1765586271806,0.959,3088.5,3088.4,0.97242998]
[1765586279316,4.19681771,3088.5,3088.4,0.97242998]
[1765586280094,0.959,3088.5,3088.4,0.97242998]
[1765586282124,0.4662,3088.5,3088.4,0.97242998]
[1765586284322,0.51,3088.6,3088.4,0.97242998]
[1765586285317,1.0028,3088.6,3088.4,0.97242998]
[1765586285518,0.4662,3088.5,3088.4,0.97242998]
[1765586288527,1.0028,3088.6,3088.4,0.97242998]
[1765586292603,0.4662,3088.5,3088.4,0.97242998]
[1765586292805,0.959,3088.5,3088.4,0.97242998]
[1765586294731,0.4662,3088.5,3088.4,0.97242998]
[1765586294933,3.70404119,3088.5,3088.1,0.58047529]
[1765586295142,0.4662,3088.3,3088.1,0.58047529]
[1765586295540,0.4662,3088.3,3088.2,0.97245835]
[1765586296405,0.4928,3088.4,3088.2,1.22755835]
[1765586296606,0.51,3088.6,3088.2,1.22755835]
[1765586296812,1.0028,3088.6,3088.2,0.2551]
[1765586297032,4.24051975,3088.6,3088.3,0.97245835]
[1765586297235,0.4928,3088.5,3088.3,0.97245835]
[1765586311553,3.74771321,3088.6,3088.3,0.97245835]
[1765586311735,0.4673,3088.4,3088.3,0.97245835]
[1765586312049,0.4673,3088.4,3088.0,0.83557529]
[1765586312245,0.9447,3088.4,3088.0,0.83557529]
[1765586312452,0.9447,3088.4,3088.1,0.97248357]
[1765586313046,0.4673,3088.4,3088.1,0.97248357]
[1765586313221,0.4673,3088.4,3088.1,4.21064857]
[1765586313423,0.51,3088.6,3088.3,0.2551]
[1765586314952,0.51,3088.6,3088.3,0.5102]
[1765586315244,0.51,3088.5,3088.4,0.97248042]
[1765586315645,0.51,3088.5,3088.4,1.22758042]
[1765586316063,0.51,3088.5,3088.4,1.48268042]
[1765586319450,0.001,3088.9,3088.4,4.72060296]
[1765586319642,0.51,3088.8,3088.5,0.83557529]
[1765586319837,0.001,3088.9,3088.5,0.58047529]
[1765586320050,0.001,3088.9,3088.8,0.2551]
[1765586320740,0.001,3088.9,3088.8,1.22739762]
[1765586322253,0.001,3088.9,3088.8,0.97229762]
[1765586323436,0.4683,3088.9,3088.8,0.97229762]
[1765586324857,0.9457,3088.9,3088.8,0.97229762]
[1765586325441,4.37679842,3088.9,3088.8,0.97229762]
[1765586325646,5.18919769,3088.9,3088.8,0.97229762]
[1765586328131,1.1394,3088.9,3088.8,0.97229762]
[1765586329560,0.9457,3088.9,3088.8,0.97229762]
[1765586336264,4.18309842,3088.9,3088.8,0.97229762]
[1765586337673,0.9457,3088.9,3088.8,0.97229762]
[1765586340968,7.42439684,3088.9,3087.9,0.2551]
[1765586341169,0.4918,3088.5,3088.3,0.97249933]
[1765586342373,0.51,3088.6,3088.4,0.2551]
[1765586342942,3.74772125,3088.6,3088.4,1.2275552]
[1765586343476,0.51,3088.6,3088.4,1.2275552]
[1765586346380,3.74771684,3088.6,3088.4,1.2275552]
[1765586347441,0.9731,3088.5,3087.5,0.405504]
[1765586347670,0.9731,3088.5,3087.6,0.660604]
[1765586347864,0.4813,3088.4,3088.2,0.97250879]
[1765586348265,0.4918,3088.3,3088.2,0.97250879]
[1765586348783,0.9731,3088.3,3088.2,0.97250879]
[1765586356661,4.21112739,3088.3,3088.2,0.97250879]
[1765586357087,0.9731,3088.3,3088.2,0.97250879]